[Event "13th KIIT Festival-A 2022"]
[Site "Bhubaneswar"]
[Date "2022.05.27"]
[Round "8.7"]
[White "Azaladze, Shota"]
[Black "Sangma, Rahul"]
[Result "1-0"]
[ECO "A07"]
[WhiteElo "2420"]
[BlackElo "2232"]
[Annotator "TA"]
[PlyCount "85"]
[EventDate "2022.05.15"]
[EventType "swiss"]
[EventCountry "IND"]
[SourceTitle "playchess.com"]
[Source "ChessBase"]
[SourceQuality "1"]
[TimeControl "5400+30"]

{[%evp 16,85,25,20,24,20,29,30,31,25,38,10,25,-24,-8,-6,10,-2,26,22,48,-16,-20,-10,46,43,50,-36,156,129,152,150,148,137,131,128,194,202,196,199,201,205,220,218,251,192,197,190,197,196,206,181,256,256,256,220,250,250,281,265,418,425,472,492,502,501,489,486,862,844,766,723]} 1. Nf3 {[%emt 0:00:03]} d5 {[%emt 0:01:12]} 2. g3 {[%emt 0:00:07]} Bg4 {[%emt 0:00:05]} 3. Bg2 {[%emt 0:00:05]} c6 {[%emt 0:00:12]} 4. O-O {[%emt 0:00:07]} Nd7 {[%emt 0:00:03]} 5. d3 {[%emt 0:00:15]} Ngf6 {[%emt 0:00:24]} 6. Nbd2 {[%emt 0:00:04]} e5 {[%emt 0:00:12]} 7. e4 {[%emt 0:00:06]} dxe4 {[%emt 0:00:47] 7...dxe4 scores better than 7...Bd6.} 8. dxe4 {[%emt 0:00:03]} Bc5 {[%emt 0:00:06]} 9. h3 {[%emt 0:00:05]} Be6 {[%emt 0:01:16] A07: Réti Opening: New York and Capablanca Systems.} 10. Ng5 {[%emt 0:00:38]} Qe7 {[%emt 0:00:03] [#]} 11. Qe2 $146 {[%emt 0:01:10]} ({Predecessor:} 11. c3 a5 12. Nxe6 Qxe6 13. Qb3 O-O 14. a4 Qxb3 15. Nxb3 Bb6 16. Ra3 Rfd8 17. Rd1 {½-½ (28) Kurajica,B (2540)-Wirig,A (2422) Pula 2004}) 11... O-O {[%emt 0:00:38] White has an edge.} 12. Nxe6 {[%emt 0:02:26]} Qxe6 {[%emt 0:00:22]} 13. Kh2 {[%emt 0:00:18]} a5 {[%emt 0:06:27]} 14. f4 {[%emt 0:09:37]} (14. Nb3 $142) 14... exf4 {[%emt 0:06:30]} 15. gxf4 {[%emt 0:00:07]} Nd5 {[%emt 0:00:14]} 16. Nf3 {[%emt 0:06:45]} f5 {[%emt 0:01:49]} 17. Ng5 {[%emt 0:02:35]} Qe7 {[%emt 0:02:35] [#] ...h6 is the strong threat.} (17... Qe8 18. Qd3 fxe4 19. Bxe4 $16) 18. e5 {[%emt 0:00:32]} (18. Qh5 N7f6 19. Qh4 fxe4 20. Nxe4 Rae8 21. Nxc5 Qxc5 $17) (18. Qd3 $14 N5b6 19. Bd2 (19. exf5 Bd6 $14)) 18... Nc7 {[%emt 0:05:23]} 19. Bd2 {[%emt 0:03:26]} Ne6 {[%emt 0:05:23]} (19... h6 $11 20. Nf3 Ne6) 20. Qc4 $36 {[%emt 0:03:12][%mdl 2048] White fights for an advantage.} Rfe8 {[%emt 0:00:19]} 21. h4 {[%emt 0:04:07]} ({Better is} 21. Nxe6 $14 Qxe6 22. Qxe6+ Rxe6 23. Rad1) 21... h6 $2 {[%emt 0:02:52]} (21... Ndf8 $1 $15 {keeps the upper hand.}) 22. Qxe6+ $16 {[%emt 0:00:26] Black is on the road to losing.} Qxe6 {[%emt 0:00:04]} 23. Nxe6 {[%emt 0:00:09]} Rxe6 {[%emt 0:00:02] [#]} 24. Bh3 $1 {[%emt 0:01:42]} g6 {[%emt 0:04:35]} 25. h5 $1 {[%emt 0:00:29]} a4 {[%emt 0:00:57]} (25... Nb6 $16 26. hxg6 Rf8) 26. hxg6 {[%emt 0:01:51]} Rf8 {[%emt 0:00:06]} 27. b4 {[%emt 0:05:19]} axb3 {[%emt 0:14:31]} 28. axb3 {[%emt 0:00:12][%cal Ba2b3,Bb3b4][%mdl 32]} Rxg6 {[%emt 0:00:17]} 29. b4 {[%emt 0:00:06]} Bb6 {[%emt 0:00:38]} 30. Rad1 {[%emt 0:00:03]} Rf7 {[%emt 0:00:47]} 31. c4 {[%emt 0:02:01][%cal Bc2c4,Bc4c5][%mdl 32]} Nf8 {[%emt 0:04:32]} 32. c5 {[%emt 0:00:45]} Bd8 {[%emt 0:01:10]} 33. Be3 {[%emt 0:00:57]} Ne6 {[%emt 0:00:17]} (33... Bh4 {is a better defense.} 34. Rg1 Kg7 35. Rxg6+ Nxg6) 34. Rg1 $18 {[%emt 0:00:25]} Rxg1 {[%emt 0:00:54]} 35. Rxg1+ {[%emt 0:00:23]} ({Don't do} 35. Bxg1 $6 Bh4 $16) 35... Kh7 {[%emt 0:03:09]} 36. Rd1 {[%emt 0:00:47]} Bc7 {[%emt 0:01:30] Against Rd6} 37. Kg2 {[%emt 0:01:53]} Ng7 {[%emt 0:10:48]} (37... h5 {was called for.} 38. Kf3 Nf8) 38. Kf3 {[%emt 0:00:20]} Kg8 {[%emt 0:03:05] White is clearly winning.} 39. Bf1 {[%emt 0:00:17]} (39. Rg1 Bd8 40. Bf1 Kh7 $18) 39... Kf8 {[%emt 0:00:31]} 40. Bc4 {[%emt 0:00:47]} Re7 {[%emt 0:00:04]} 41. Rg1 {[%emt 0:00:48] And now Rg6 would win.} Rd7 {[%emt 0:00:57]} (41... Ke8 $142 42. Rg6 Kd7 43. Rxh6 Ne6) 42. Rg6 {[%emt 0:00:10]} h5 {[%emt 0:00:03]} 43. Rh6 {[%emt 0:02:26] Weighted Error Value: White=0.16 (very precise) /Black=0.30} 1-0

[Event "13th KIIT Festival-A 2022"]
[Site "Bhubaneswar"]
[Date "2022.05.27"]
[Round "8.8"]
[White "Nitin, S.."]
[Black "Kiran, Manisha Mohanty"]
[Result "1-0"]
[ECO "B51"]
[WhiteElo "2399"]
[BlackElo "2098"]
[Annotator "TA"]
[PlyCount "43"]
[EventDate "2022.05.15"]
[EventType "swiss"]
[EventCountry "IND"]
[SourceTitle "playchess.com"]
[Source "ChessBase"]
[SourceQuality "1"]
[TimeControl "5400+30"]

{[%evp 9,43,-16,59,44,137,137,131,136,132,117,124,117,240,253,268,272,283,280,336,347,403,424,609,608,604,608,578,477,1594,941,29990,5701,29995,29996,29996,29997]} 1. e4 {[%emt 0:00:33][%cal Be2e4,Be4e5][%mdl 32]} c5 {[%emt 0:00:57]} 2. Nf3 {[%emt 0:00:15]} d6 {[%emt 0:00:05]} 3. Bb5+ {[%emt 0:00:16]} Nd7 {[%emt 0:00:10]} 4. d4 {[%emt 0:00:21]} Ngf6 {[%emt 0:04:39]} 5. e5 {[%emt 0:00:35] [#]} Qa5+ {[%emt 0:01:19]} ({Better is} 5... cxd4 $1 $11 6. Qxd4 (6. exf6 Qa5+ 7. Qd2 Qxb5 $15) 6... dxe5 7. Qxe5 (7. Nxe5 a6 $11) 7... a6 8. Bxd7+ Bxd7) 6. Nc3 $14 {[%emt 0:00:11] B51: Sicilian: Moscow Variation (3 Bb5+) without 3...Bd7.} cxd4 {[%emt 0:10:51]} (6... Ne4 $14) 7. Qxd4 $16 {[%emt 0:03:25]} (7. exf6 $2 dxc3 8. Bxd7+ Bxd7 $19) 7... dxe5 {[%emt 0:04:56] [#]} 8. Qxe5 $146 {[%emt 0:06:24] Threatens to win with Bxd7+. White is clearly better.} ({Much less strong is} 8. Nxe5 a6 9. Bxd7+ (9. b4 Qd8 $14) 9... Bxd7 $16) ({Predecessor:} 8. Nxe5 a6 9. Nc4 Qd8 10. Bf4 axb5 11. Nxb5 e5 12. Bxe5 Bb4+ 13. c3 O-O 14. Bxf6 Nxf6 15. Qxd8 Rxd8 16. cxb4 {½-½ (56) Daeschler,F (2205)-Schuh,H (2292) Baden 2018}) 8... Qd8 {[%emt 0:05:54]} 9. Bg5 {[%emt 0:06:02] 0-0-0 is the strong threat. White is much more active.} a6 {[%emt 0:16:55]} 10. Bxd7+ {[%emt 0:02:14]} Nxd7 {[%emt 0:00:16]} (10... Qxd7 $16 {was necessary.} 11. O-O Qe6) 11. Qg3 $18 {[%emt 0:06:32]} f6 {[%emt 0:02:00] [#]} 12. O-O-O $1 {[%emt 0:04:45][%cal Oc3d5]} Qa5 {[%emt 0:08:54]} (12... Kf7 13. Rhe1) 13. Bf4 {[%emt 0:09:22][%cal Bg5f4,Bf4d6,Bd6e7][%mdl 32] Black must now prevent Rhe1.} e6 {[%emt 0:09:55]} (13... e5 $2 14. Rhe1 Kf7 {[#]} 15. Bxe5 $1 Nxe5 16. Nxe5+ Kg8 17. Nf3 $18) 14. Rd2 {[%emt 0:13:47]} Kf7 {[%emt 0:05:36]} 15. Rhd1 {[%emt 0:01:15]} Be7 {[%emt 0:11:42]} (15... Nb6 $142 16. Bc7 (16. Rd8 Nc4 $18) 16... Be7) 16. Rxd7 {[%emt 0:01:52]} Bxd7 {[%emt 0:00:20]} 17. Rxd7 {[%emt 0:00:09]} Rhe8 {[%emt 0:01:05]} 18. Bd6 {[%emt 0:02:09] Hoping for Bxe7.} g6 {[%emt 0:00:09]} (18... Qh5 $142 19. Rxb7 Qh6+ 20. Bf4 Qg6) 19. Qh4 {[%emt 0:01:43]} h5 {[%emt 0:00:41] [#]} 20. Ne5+ $1 {[%emt 0:01:19][%mdl 512]} fxe5 {[%emt 0:01:27]} (20... Qxe5 21. Bxe5) 21. Bxe7 {[%emt 0:00:44]} Kg8 {[%emt 0:00:16]} 22. Qf6 {[%emt 0:00:26] Black did not feel at home in the position after the opening.  Weighted Error Value: White=0.14 (very precise) /Black=1.03} 1-0

[Event "13th KIIT Festival-A 2022"]
[Site "Bhubaneswar"]
[Date "2022.05.27"]
[Round "8.9"]
[White "Alekhya Mukhopadhyay"]
[Black "Audi Ameya"]
[Result "0-1"]
[ECO "B12"]
[WhiteElo "2162"]
[BlackElo "2389"]
[Annotator "TA"]
[PlyCount "106"]
[EventDate "2022.05.15"]
[EventType "swiss"]
[EventCountry "IND"]
[SourceTitle "playchess.com"]
[Source "ChessBase"]
[SourceQuality "1"]
[TimeControl "5400+30"]

{[%evp 9,106,-12,-12,-22,-21,-56,-52,-60,-31,-89,-86,-86,-81,-104,-43,-41,-43,-38,-43,-44,-45,-47,-40,-45,-38,-44,-44,-46,-46,-44,-43,-39,-35,-40,-35,-43,-37,-37,-37,-49,-49,-69,-48,-48,-40,-55,-55,-54,-47,-56,-35,-44,-19,-32,-25,-21,0,0,0,0,0,16,10,40,10,0,0,0,87,89,80,82,87,93,81,77,141,39,50,0,0,0,0,-25,-14,-104,-102,-259,-252,-333,-345,-336,-318,-770,-768,-760,-745,-775,-758]} 1. e4 {[%emt 0:00:06]} c6 {[%emt 0:00:01]} 2. d4 {[%emt 0:00:12]} d5 {[%emt 0:00:02]} 3. f3 {[%emt 0:00:12]} Qb6 {[%emt 0:01:08]} 4. Nc3 {[%emt 0:00:44]} e6 {[%emt 0:00:06]} 5. Nge2 {[%emt 0:02:06]} Nd7 {[%emt 0:00:59]} 6. Rb1 {[%emt 0:04:29] [#] B12: Caro-Kann: Advance Variation.} dxe4 $146 {[%emt 0:00:28]} ({Predecessor:} 6... Ne7 7. Be3 Ng6 8. a3 Be7 9. Ng3 O-O 10. Be2 f5 11. exf5 exf5 12. f4 Nf6 {0-1 (34) Strepikowski,P (1676)-Topola,R (1754) Szklarska Poreba 2020}) 7. fxe4 {[%emt 0:00:50]} e5 {[%emt 0:00:26]} 8. Be3 {[%emt 0:02:08] Black is slightly better.} Ngf6 {[%emt 0:05:12]} 9. Ng3 {[%emt 0:10:51]} ({Better is} 9. Qd2 $15 Qd8 10. Rd1) 9... exd4 $17 {[%emt 0:10:12]} 10. Bxd4 {[%emt 0:02:05] [#]} Bc5 {[%emt 0:00:05]} 11. Nf5 {[%emt 0:16:11]} Bxd4 {[%emt 0:00:06]} (11... O-O $17 {And now ...Re8 would win.} 12. Qd2 Bxd4 13. Qxd4 Qxd4 14. Nxd4 Nc5) 12. Qxd4 $15 {[%emt 0:00:20]} Qxd4 {[%emt 0:00:04]} (12... O-O {is interesting.} 13. Be2 Qxd4 14. Nxd4 Re8) 13. Nxd4 {[%emt 0:00:05]} O-O {[%emt 0:00:11]} 14. Be2 {[%emt 0:11:30]} Re8 {[%emt 0:01:27]} 15. Bf3 $1 {[%emt 0:00:23]} Ne5 {[%emt 0:13:25]} 16. O-O {[%emt 0:03:34]} g6 {[%emt 0:04:07]} 17. Rfe1 {[%emt 0:04:44]} Kg7 {[%emt 0:05:12]} 18. a4 {[%emt 0:08:17]} a5 {[%emt 0:02:54]} 19. Rbd1 {[%emt 0:02:00]} h5 {[%emt 0:00:51]} 20. Be2 {[%emt 0:01:45]} Be6 {[%emt 0:06:22]} 21. Nf3 {[%emt 0:02:56]} Nfd7 {[%emt 0:00:33]} 22. Rd6 {[%emt 0:01:10]} Re7 {[%emt 0:01:03]} 23. Red1 {[%emt 0:01:23]} Rae8 {[%emt 0:02:09]} 24. Ng5 {[%emt 0:05:19]} Nc5 {[%emt 0:03:31]} 25. Rd8 {[%emt 0:03:52]} Bd7 {[%emt 0:05:37]} 26. Rxe8 {[%emt 0:00:47]} Rxe8 {[%emt 0:00:02]} 27. h3 {[%emt 0:03:49]} Kf6 {[%emt 0:12:41]} 28. Nf3 {[%emt 0:00:37]} Nxf3+ {[%emt 0:00:09]} 29. Bxf3 {[%emt 0:00:04]} Ke5 {[%emt 0:00:04]} 30. Kf2 {[%emt 0:00:30]} Be6 {[%emt 0:01:44]} 31. b3 {[%emt 0:01:22]} Rb8 {[%emt 0:01:02]} 32. Ke3 {[%emt 0:00:49]} b5 {[%emt 0:01:55]} 33. Rd4 {[%emt 0:04:28]} b4 {[%emt 0:02:39]} 34. Nb1 {[%emt 0:01:10]} Nd7 {[%emt 0:01:18]} 35. Nd2 {[%emt 0:00:55]} c5 {[%emt 0:00:43]} 36. Nc4+ {[%emt 0:00:21]} Kf6 $1 {[%emt 0:01:08]} ({Don't play} 36... Bxc4 37. Rxd7 Be6 38. Ra7 $16) 37. Rd1 {[%emt 0:01:00]} Ne5 $1 {[%emt 0:05:54]} 38. Nxa5 {[%emt 0:01:21]} c4 {[%emt 0:00:06]} (38... Ra8 $11 39. Nb7 c4) 39. Nxc4 $16 {[%emt 0:01:03]} Bxc4 {[%emt 0:00:04]} 40. bxc4 {[%emt 0:00:11]} Nxc4+ {[%emt 0:00:06][%mdl 4096] Endgame KRB-KRN} 41. Kd4 {[%emt 0:00:37]} Rc8 {[%emt 0:00:47]} 42. e5+ {[%emt 0:01:52]} Ke7 {[%emt 0:01:26] [#]} (42... Nxe5 $142 43. Bd5 Nc6+ 44. Kc5 Ne7+ 45. Kxb4 Nxd5+ 46. Rxd5 Rxc2) 43. Bd5 {[%emt 0:02:03]} ({White should play} 43. Rb1 $1 $16 {[%cal Rb1b4]} Na3 44. Rb3) 43... Nb6 $14 {[%emt 0:00:52][%csl LRa4,LRc2]} 44. Bf3 {[%emt 0:01:47]} (44. c4 $14) 44... Rc4+ {[%emt 0:01:01]} 45. Kd3 {[%emt 0:00:29]} Rc3+ {[%emt 0:00:02]} 46. Kd2 {[%emt 0:00:29]} Nc4+ {[%emt 0:00:06]} 47. Ke2 {[%emt 0:00:19]} (47. Ke1 $1 $11) 47... Rxc2+ $17 {[%emt 0:00:21]} 48. Kd3 $2 {[%emt 0:00:16] This move loses the game for White.} (48. Ke1 $17 {was the only defense.}) 48... b3 $19 {[%emt 0:03:59]} 49. Re1 {[%emt 0:00:57]} Nb2+ {[%emt 0:00:19]} 50. Kd4 {[%emt 0:00:27]} Nxa4 {[%emt 0:00:03] ...b2 is the strong threat.} 51. Bd5 $2 {[%emt 0:00:34]} (51. Be4 Rc7 52. Re3) 51... Rd2+ {[%emt 0:01:03] Black is clearly winning.} 52. Kc4 {[%emt 0:00:25]} Nb6+ {[%emt 0:00:03]} 53. Kxb3 {[%emt 0:00:09]} Nxd5 {[%emt 0:00:03] Weighted Error Value: White=0.29 (precise) /Black=0.09 (flawless)} 0-1

[Event "13th KIIT Festival-A 2022"]
[Site "Bhubaneswar"]
[Date "2022.05.27"]
[Round "8.10"]
[White "Praloy Sahoo"]
[Black "Karthikeyan, P.."]
[Result "0-1"]
[ECO "C45"]
[WhiteElo "2065"]
[BlackElo "2361"]
[Annotator "TA"]
[PlyCount "78"]
[EventDate "2022.05.15"]
[EventType "swiss"]
[EventCountry "IND"]
[SourceTitle "playchess.com"]
[Source "ChessBase"]
[SourceQuality "1"]
[TimeControl "5400+30"]

{[%evp 11,78,1,18,0,16,-13,0,0,0,0,0,0,0,0,22,18,26,12,13,26,16,-23,-20,-22,-22,-22,-18,-11,-16,-19,-18,-11,-14,-16,-34,-12,-12,-12,0,0,0,-21,-12,-35,-34,-50,-24,-25,-21,-31,-24,-23,-22,-23,-13,-19,-13,-45,-47,-51,-45,-187,-160,-112,-106,-12846,-12847,-12847,-12847]} 1. e4 {[%emt 0:00:04]} e5 {[%emt 0:00:02]} 2. Nf3 {[%emt 0:00:10]} Nc6 {[%emt 0:00:05]} 3. d4 {[%emt 0:01:23]} exd4 {[%emt 0:00:10]} 4. Nxd4 {[%emt 0:00:03]} Qf6 {[%emt 0:00:09]} 5. Nxc6 {[%emt 0:03:35]} Bc5 {[%emt 0:02:25]} 6. Qf3 {[%emt 0:00:23]} bxc6 {[%emt 0:00:51]} 7. Nd2 {[%emt 0:07:22] C45: Scotch Game.} d6 {[%emt 0:00:19]} 8. Nb3 {[%emt 0:02:48]} Qxf3 {[%emt 0:03:17]} 9. gxf3 {[%emt 0:00:02] The position is equal.} Bb6 {[%emt 0:00:05]} 10. a4 {[%emt 0:05:31] [#] Strongly threatening a5.} a5 {[%emt 0:00:02]} 11. Be3 {[%emt 0:02:51]} Bxe3 {[%emt 0:02:18]} 12. fxe3 {[%emt 0:00:07]} c5 {[%emt 0:00:12]} 13. Bb5+ {[%emt 0:00:58] [#]} Ke7 $146 {[%emt 0:00:19]} ({Predecessor:} 13... Bd7 14. e5 Ne7 15. Kf2 Bxb5 16. axb5 a4 17. exd6 cxd6 18. c4 Nc8 19. e4 Nb6 {1-0 (55) Mokshanov,A (2440)-Baigildin,A (2192) Izhevsk 2014}) 14. Rg1 {[%emt 0:01:53]} g6 {[%emt 0:02:45]} 15. e5 {[%emt 0:32:39]} Be6 {[%emt 0:01:59]} 16. Nc1 {[%emt 0:05:31]} dxe5 {[%emt 0:06:08]} 17. Nd3 {[%emt 0:00:04][%csl LRc5,LRe5]} c6 $1 {[%emt 0:00:04]} 18. Bxc6 {[%emt 0:00:53]} Rc8 {[%emt 0:00:44]} 19. Nxe5 {[%emt 0:06:21] Black must now prevent Bb5.} f6 {[%emt 0:02:37][%cal Bf7f6,Bf6e5][%mdl 32]} 20. Bb7 {[%emt 0:00:03]} fxe5 {[%emt 0:00:40]} 21. Bxc8 {[%emt 0:00:01]} Bxc8 {[%emt 0:00:03]} 22. Rg5 {[%emt 0:06:54]} Kf6 {[%emt 0:10:56]} 23. f4 {[%emt 0:00:12]} Bf5 {[%emt 0:00:42]} 24. O-O-O {[%emt 0:00:17]} exf4 {[%emt 0:00:51]} 25. exf4 {[%emt 0:00:14]} Nh6 {[%emt 0:07:17]} 26. Rd6+ {[%emt 0:00:16]} Ke7 $1 {[%emt 0:01:42]} 27. Ra6 {[%emt 0:03:59]} Ng4 $1 {[%emt 0:05:33]} 28. Rxa5 {[%emt 0:08:13]} h6 {[%emt 0:03:10]} (28... Kd6 $5 {[%cal Rh8e8]}) 29. Ra7+ {[%emt 0:00:02]} Ke6 {[%emt 0:00:57]} 30. Ra6+ {[%emt 0:00:06]} Kd5 {[%emt 0:02:49]} 31. Rxg4 {[%emt 0:00:20]} Bxg4 {[%emt 0:00:23]} 32. Rxg6 $11 {[%emt 0:00:02][%mdl 4096] Endgame KRB-KR} Bf5 {[%emt 0:01:03]} 33. Rf6 {[%emt 0:00:05]} Be4 {[%emt 0:02:38] And now ...Rg8 would win.} 34. b3 {[%emt 0:01:24]} Rg8 {[%emt 0:06:05] Threatens to win with ...Rg2.} 35. Rxh6 {[%emt 0:08:08]} Rg2 {[%emt 0:05:02]} 36. Rh5+ {[%emt 0:00:43]} (36. Kb2 $1 $15) 36... Kd4 $19 {[%emt 0:00:02]} 37. c3+ {[%emt 0:00:51] [#]} Ke3 $1 {[%emt 0:00:13] aiming for ...Rc2+. Black is more active.} 38. Rxc5 $2 {[%emt 0:01:50][%mdl 8192]} (38. h4 $17) 38... Rc2+ {[%emt 0:00:11]} 39. Kb1 {[%emt 0:02:30]} Rxc3+ $1 {[%emt 0:00:11][%mdl 64] Discovered Attack.  Weighted Error Value: White=0.42/Black=0.03 (flawless)} 0-1

[Event "13th KIIT Festival-A 2022"]
[Site "Bhubaneswar"]
[Date "2022.05.27"]
[Round "8.11"]
[White "Ram Aravind L N"]
[Black "Rohith Krishna S"]
[Result "1/2-1/2"]
[ECO "C93"]
[WhiteElo "2116"]
[BlackElo "2337"]
[Annotator "TA"]
[PlyCount "141"]
[EventDate "2022.05.15"]
[EventType "swiss"]
[EventCountry "IND"]
[SourceTitle "playchess.com"]
[Source "ChessBase"]
[SourceQuality "1"]
[TimeControl "5400+30"]

{[%evp 18,141,45,14,16,12,31,20,45,45,45,25,41,40,49,23,36,28,64,52,52,28,28,36,56,60,87,82,96,69,50,49,48,42,47,39,40,52,48,29,30,0,47,50,51,45,43,33,34,30,43,32,103,77,66,0,0,0,0,0,0,0,0,0,0,0,0,-56,-70,-92,-82,-130,-118,-126,-45,-47,-8,-15,-1,-6,79,78,58,47,102,86,146,100,177,27,37,37,113,71,71,71,71,20,20,0,16,0,0,0,0,0,0,0,0,0,0,0,0,0,0,0,0,0,0,0,0,0,0,-715,-235,-635]} 1. e4 {[%emt 0:00:09]} e5 {[%emt 0:00:14]} 2. Nf3 {[%emt 0:00:06]} Nc6 {[%emt 0:00:05]} 3. Bb5 {[%emt 0:00:11]} a6 {[%emt 0:00:10]} 4. Ba4 {[%emt 0:00:05]} Nf6 {[%emt 0:00:10]} 5. O-O {[%emt 0:00:25]} Be7 {[%emt 0:00:06]} 6. Re1 {[%emt 0:00:08]} b5 {[%emt 0:00:12]} 7. Bb3 {[%emt 0:00:06]} d6 {[%emt 0:00:31]} 8. c3 {[%emt 0:00:05]} O-O {[%emt 0:00:10]} 9. h3 {[%emt 0:00:27]} h6 {[%emt 0:00:24]} 10. d3 {[%emt 0:01:07][%cal Bd2d3,Bd3d4,Bd4d5][%mdl 32]} Re8 {[%emt 0:02:26] C93: Closed Ruy Lopez: Smyslov Variation.} 11. Nbd2 {[%emt 0:01:04]} Bf8 {[%emt 0:05:12]} 12. d4 {[%emt 0:02:20]} Na5 {[%emt 0:05:29] The position is equal.} 13. Bc2 $1 {[%emt 0:00:47]} c5 {[%emt 0:00:09]} 14. d5 {[%emt 0:00:29] [#]} Nh5 $146 {[%emt 0:06:10]} ({Predecessor:} 14... c4 15. b4 cxb3 16. axb3 Qc7 17. b4 Nb7 18. Bb2 Nd7 19. Qe2 Nb6 20. Rec1 Bd7 {1-0 (35) Shanava,K (2556)-Javakhadze,Z (2354) Poti 2010}) 15. Nf1 {[%emt 0:04:32][%cal Of3e5]} g6 {[%emt 0:03:45]} 16. Kh2 {[%emt 0:06:47]} Nf4 {[%emt 0:08:53]} 17. Ng1 {[%emt 0:01:57]} Qd7 {[%emt 0:05:00]} 18. Qf3 {[%emt 0:03:48]} Bg7 {[%emt 0:01:22]} 19. Kh1 {[%emt 0:05:16]} (19. Bxf4 exf4 20. Nd2 Qd8 $11) 19... Nc4 {[%emt 0:16:38]} 20. a4 {[%emt 0:03:19]} Bb7 {[%emt 0:05:58]} 21. b3 {[%emt 0:02:16]} Na5 {[%emt 0:00:22]} 22. c4 {[%emt 0:09:52]} Qc7 {[%emt 0:10:16]} 23. Qc3 {[%emt 0:01:54]} Bc8 {[%emt 0:06:40]} 24. Bd2 {[%emt 0:07:17]} (24. cxb5 Nxd5 25. Qd2 (25. exd5 e4 $15) 25... Nb4 $17) 24... b4 {[%emt 0:00:44]} 25. Qf3 {[%emt 0:00:50]} Qe7 {[%emt 0:00:13]} 26. Rad1 {[%emt 0:05:53]} Qf6 {[%emt 0:01:50]} 27. Kh2 {[%emt 0:00:44]} Nh5 {[%emt 0:00:05]} 28. Qe2 {[%emt 0:05:21]} Nf4 {[%emt 0:01:21]} 29. Qf3 {[%emt 0:00:19]} Nh5 {[%emt 0:00:07]} 30. Qxf6 {[%emt 0:03:37]} Nxf6 {[%emt 0:00:12]} 31. g3 {[%emt 0:01:02]} Ra7 {[%emt 0:02:10]} 32. Re2 {[%emt 0:01:45]} Rae7 {[%emt 0:00:55]} 33. Rde1 {[%emt 0:00:25]} Nh7 {[%emt 0:02:25]} 34. Ne3 {[%emt 0:01:59]} f5 {[%emt 0:02:13]} (34... Nf8 $14) 35. exf5 $16 {[%emt 0:08:59]} gxf5 {[%emt 0:00:06]} 36. Bxf5 {[%emt 0:01:03]} (36. Nxf5 Bxf5 37. Bxf5 Nxb3 $15) (36. Nf3 $14) 36... Nxb3 $11 {[%emt 0:00:39]} 37. Bxc8 $1 {[%emt 0:00:05]} Rxc8 {[%emt 0:00:56]} 38. Nf5 {[%emt 0:00:04][%csl LRd6,LRe7,LRh6]} Rd7 {[%emt 0:00:07]} 39. Bxh6 {[%emt 0:00:18]} Bxh6 {[%emt 0:00:24]} 40. Nxh6+ {[%emt 0:00:02]} Kh8 {[%emt 0:00:34]} 41. f4 {[%emt 0:09:57]} exf4 {[%emt 0:00:04]} (41... Nd4 42. fxe5 $1 Kg7 43. e6 $14) 42. gxf4 {[%emt 0:01:32]} ({White should try} 42. Nf3 $11) 42... Nd4 $15 {[%emt 0:00:07]} 43. Re7 Rcc7 {[%emt 0:00:17][%mdl 1024] Black has strong compensation.} (43... Rxe7 $6 44. Rxe7 Rb8 45. Nf7+ Kg8 46. Nh6+ (46. Nxd6 b3 $19) 46... Kh8 47. Nf7+ Kg8 48. Nh6+ (48. Nxd6 $2 b3 $19) 48... Kh8 $11) 44. Re8+ {[%emt 0:07:33]} (44. Rxd7 $142 Rxd7 45. Kg2) 44... Kg7 $17 {[%emt 0:00:04]} 45. Ng4 {[%emt 0:00:07] [#]} b3 {[%emt 0:00:52]} (45... Nf6 $1 $17 {[%cal Rf6e8]} 46. Nxf6 Kxf6) 46. Kg2 $15 {[%emt 0:04:21]} b2 {[%emt 0:02:13]} 47. Rb1 {[%emt 0:01:08]} Rb7 {[%emt 0:01:13] ...Rb3 is the strong threat.} 48. Nf3 $36 {[%emt 0:00:08][%mdl 2048] White fights for an advantage.} Nf5 {[%emt 0:03:13]} (48... Nf6 $11 {keeps the balance.} 49. Nxf6 Kxf6) 49. Re2 $16 {White is more active.} Rb4 {[%emt 0:05:46][%csl LRa4,LRc4]} 50. Rexb2 {[%emt 0:00:47]} a5 {[%emt 0:00:05]} ({Better is} 50... Rxa4 $14 51. Kg1 Nf6) 51. Rxb4 {[%emt 0:00:44]} cxb4 {[%emt 0:00:18]} (51... axb4 $142 52. Kf2 Ra7) 52. Nd2 {[%emt 0:00:33]} (52. Kf2 $142) 52... Rc7 {[%emt 0:01:33]} (52... Nf6 $16) 53. Nb3 {[%emt 0:00:18]} (53. Re1 $18) 53... Rxc4 $11 {[%emt 0:00:16]} 54. Nxa5 {[%emt 0:00:07]} Rc2+ {[%emt 0:00:49]} ({Black should play} 54... Rxf4 $14 55. Nc6 b3) 55. Kf3 {[%emt 0:01:06]} Rc3+ {[%emt 0:00:05]} 56. Kf2 {[%emt 0:00:20]} ({But not} 56. Ke4 Ng3+ 57. Kd4 Nf5+ 58. Ke4 Ng3+ 59. Kd4 Nf5+ 60. Ke4 $11) 56... Rxh3 {[%emt 0:01:43] [#]} 57. Rxb4 {[%emt 0:00:05]} (57. Nc4 $1 $16) 57... Rg3 $1 {[%emt 0:00:10]} 58. Nh2 {[%emt 0:01:38]} Nf6 {[%emt 0:00:07]} 59. Nc4 {[%emt 0:00:41][%cal Oc4d6] And now Nxd6! would win.} Ne4+ {[%emt 0:00:22]} 60. Kf1 {[%emt 0:00:19]} Rc3 {[%emt 0:01:00][%cal Oc3c4]} 61. Nb6 {[%emt 0:00:48]} Rc2 {[%emt 0:01:33]} 62. Kg1 {[%emt 0:00:45]} Rc1+ {[%emt 0:02:07]} 63. Kg2 {[%emt 0:00:04]} Rc2+ {[%emt 0:00:06]} 64. Kf3 {[%emt 0:00:52]} Nc5 {[%emt 0:01:28]} 65. Ng4 {[%emt 0:00:24]} Rc3+ {[%emt 0:00:21]} 66. Ke2 {[%emt 0:00:10]} Rc2+ {[%emt 0:00:04]} 67. Kf3 {[%emt 0:00:33]} Rc3+ {[%emt 0:00:09]} 68. Ke2 {[%emt 0:00:09]} Rc2+ {[%emt 0:00:10]} 69. Kf3 {[%emt 0:00:48]} Rc3+ {[%emt 0:00:29]} 70. Kf2 $2 {[%emt 0:02:40][%mdl 8192]} (70. Ke2 $11) 70... Rg3 $2 {[%emt 0:03:23]} (70... Nd3+ 71. Kg2 Nxb4) 71. Nc4 $2 {[%emt 0:00:30][%mdl 32768] What a bad dream for White.  Weighted Error Value: White=0.17 (very precise) /Black=0.17 (very precise) . An unexpected result.} ({Much worse is} 71. Ne5 dxe5 72. Rc4 Nd3+ 73. Ke2 Nxf4+ 74. Kd2 Rd3+ 75. Ke1 Nxd5 $19) (71. Rc4 Rxg4 72. a5) 1/2-1/2